fUST/lending_fUST_20260228
["ID","MTS","AMOUNT","RATE_DAILY","PERIOD"]
[406924267,1772278245399,-892.258966,0.00016257,2]
[406924268,1772278245408,-333684.07445965,0.00016266,2]
[406924269,1772278245418,-716.0,0.000164,2]
[406924270,1772278245427,-714.0,0.000164,2]
[406924271,1772278245437,-1367.17,0.000164,2]
[406924272,1772278245448,-250.26138736,0.00016438,2]
[406924273,1772278245458,-151.0,0.00016438,2]
[406924274,1772278245467,-1248.40826198,0.00016438,2]
[406924275,1772278245478,-3000.0,0.00016438,2]
[406924276,1772278245488,-3500.0,0.0001656,2]
[406924277,1772278245497,-3500.0,0.0001656,2]
[406924278,1772278245506,-161.32827966,0.00016574,2]
[406924279,1772278245516,-161.59,0.0001659,2]
[406924280,1772278245526,-1367.17,0.0001667,2]
[406924281,1772278245535,-864.0,0.00016905,2]
[406924282,1772278245544,-595.9872299,0.00016905,2]
[406924283,1772278245554,-1766.58490905,0.00016915,3]
[406924284,1772278245563,-1367.17,0.0001694,2]
[406924285,1772278245573,-487.0,0.00016986,2]
[406924286,1772278245583,-487.0,0.00016986,2]
[406924287,1772278245593,-487.0,0.00016986,2]
[406924288,1772278245602,-487.0,0.00016986,2]
[406924289,1772278245612,-679.7,0.00016986,2]
[406924290,1772278245621,-3500.0,0.00016986,2]
[406924291,1772278245630,-403.0,0.0001704,2]
[406924292,1772278245639,-891.743,0.00017061,2]
[406924293,1772278245648,-4000.0,0.00017108,2]
[406924294,1772278245658,-4000.0,0.00017108,2]
[406924295,1772278245667,-1367.17,0.0001721,2]
[406924296,1772278245676,-401.0,0.0001736,2]
[406924297,1772278245685,-161.59,0.0001738,2]
[406924298,1772278245695,-1367.17,0.0001748,2]
[406924299,1772278245705,-823.0,0.0001749,2]
[406924300,1772278245715,-1288.57265826,0.00017534,2]
[406924302,1772278245724,-637.0,0.00017578,2]
[406924303,1772278245733,-2183.0,0.00017578,2]
[406924304,1772278245742,-1387.0,0.00017578,2]
[406924305,1772278245751,-729.0,0.00017578,2]
[406924306,1772278245760,-431.0,0.00017578,2]
[406924307,1772278245770,-431.0,0.00017578,2]
[406924308,1772278245779,-1414.72182796,0.00017656,2]
[406924309,1772278245789,-1051.55575472,0.00017656,2]
[406924310,1772278245798,-162.0,0.0001766,2]
[406924311,1772278245807,-162.0,0.0001768,2]
[406924312,1772278245817,-322.0,0.00017745,2]
[406924313,1772278245826,-1367.17,0.0001775,2]
[406924314,1772278245836,-150.35037324,0.00017808,2]
[406924316,1772278245845,-150.0,0.00017808,2]
[406924317,1772278245855,-17587.72152203,0.000179,2]
[406924318,1772278245864,-151.0,0.000179,2]
[406924319,1772278245874,-242.0,0.000179,2]
[406924320,1772278245884,-397.0,0.00017953,2]
[406924321,1772278245894,-52157.06010489,0.00018,2]
[406924322,1772278245903,-160.388742,0.00018,2]
[406924323,1772278245912,-1367.17,0.0001802,2]
[406924324,1772278245922,-258.0,0.00018077,2]
[406924325,1772278245931,-1367.17,0.0001829,2]
[406924327,1772278245942,-168.0,0.00018292,2]
[406924328,1772278245951,-5768.562299,0.00018308,2]
[406924329,1772278245961,-284.0,0.00018345,2]
[406924330,1772278245970,-250.0,0.00018356,2]
[406924331,1772278245980,-595.9872299,0.00018372,2]
[406924332,1772278245989,-168.0,0.00018404,2]
[406924334,1772278245998,-1367.17,0.0001856,2]
[406924335,1772278246008,-1000.0,0.00018595,2]
[406924336,1772278246018,-284.0,0.00018643,2]
[406924337,1772278246027,-165.4,0.00018748,2]
[406924338,1772278246038,-316.37,0.0001876,2]
[406924339,1772278246047,-5000.0,0.0001881,2]
[406924340,1772278246056,-5000.0,0.0001881,2]
[406924341,1772278246066,-5000.0,0.0001881,2]
[406924342,1772278246075,-5000.0,0.0001881,2]
[406924343,1772278246084,-5000.0,0.0001881,2]
[406924344,1772278246094,-1367.17,0.0001883,2]
[406924345,1772278246104,-350.0,0.00018904,2]
[406924346,1772278246113,-284.0,0.00018953,2]
[406924347,1772278246123,-284.0,0.00018963,2]
[406924348,1772278246133,-168.0,0.00019029,2]
[406924349,1772278246142,-284.0,0.00019049,2]
[406924350,1772278246151,-1367.17,0.000191,2]
[406924351,1772278246161,-1152.0,0.00019175,2]
[406924352,1772278246170,-178.25038101,0.00019178,2]
[406924353,1772278246180,-168.0,0.00019211,2]
[406924354,1772278246190,-168.0,0.00019222,2]
[406924355,1772278246200,-423.35,0.00019339,30]
[406924356,1772278246209,-1367.17,0.0001937,2]
[406924357,1772278246219,-450.0,0.00019452,2]
[406924358,1772278246228,-284.0,0.00019487,2]
[406924359,1772278246238,-284.0,0.00019512,2]
[406924360,1772278246247,-284.0,0.00019588,2]
[406924361,1772278246257,-1367.17,0.0001964,2]
[406924362,1772278246266,-284.0,0.00019653,2]
[406924363,1772278246275,-168.0,0.00019728,2]
[406924364,1772278246285,-284.0,0.00019734,2]
[406924365,1772278246294,-1367.17,0.0001991,2]
[406924366,1772278246304,-156.0,0.00019947,2]
[406924367,1772278246314,-168.0,0.00019948,2]
[406924368,1772278246323,-702.03551411,0.00019973,2]
[406924369,1772278246332,-1040.60305068,0.00019994,7]
[406924370,1772278246342,-875075.59121422,0.0002,2]
[406924371,1772278246353,-18056.82668006,0.0002,2]
[406924372,1772278246362,-200.0,0.0002,2]
[406924373,1772278246375,-201.06660901,0.0002,2]
[406924374,1772278246384,-5138.16555445,0.0002,2]
[406924375,1772278246394,-7872.49519152,0.0002,2]
[406924376,1772278246408,-6916.71337818,0.0002,2]
[406924377,1772278246419,-507.52735001,0.0002,2]
[406924378,1772278246428,-200.0,0.0002,10]
[406924379,1772278246439,-24763.53029939,0.0002,2]
[406924380,1772278246449,-150.0,0.0002,2]
[406924381,1772278246459,-1500.0,0.0002,2]
[406924382,1772278246469,-1500.0,0.0002,2]
[406924383,1772278246479,-1500.0,0.0002,2]
[406924384,1772278246489,-1500.0,0.0002,2]
[406924385,1772278246499,-1500.0,0.0002,2]
[406924386,1772278246508,-1500.0,0.0002,2]
[406924387,1772278246519,-1500.0,0.0002,2]
[406924388,1772278246530,-1500.0,0.0002,2]
[406924389,1772278246540,-164.38478842,0.0002,2]
[406924391,1772278246731,-509.61521158,0.0002,2]
[406924392,1772278246740,-12314.2739774,0.0002,2]
[406924393,1772278246752,-2021.25087948,0.0002,2]
[406924394,1772278246763,-15614.92452434,0.0002,2]
[406924395,1772278246772,-151.0,0.0002,2]
[406924396,1772278246782,-151.0,0.0002,2]
[406924397,1772278246792,-151.55000802,0.0002,2]
[406924398,1772278246802,-250.0,0.0002,10]
[406924399,1772278246812,-151.0,0.0002,2]
[406924400,1772278246821,-151.0,0.0002,2]
[406924401,1772278246831,-151.0,0.0002,2]
[406924402,1772278246840,-151.0,0.0002,2]
[406924403,1772278246850,-150.0,0.0002,2]
[406924404,1772278246859,-550.0,0.0002,2]
[406924405,1772278246869,-285.0,0.00020077,2]
[406924406,1772278246878,-250.0,0.000201,10]
[406924407,1772278246888,-1367.17,0.0002018,2]
[406924408,1772278246898,-250.0,0.000202,10]
[406924409,1772278246907,-153.0,0.00020237,30]
[406924410,1772278246917,-164.97595853,0.00020238,5]
[406924411,1772278246927,-284.0,0.00020272,2]
[406924412,1772278246937,-165.0,0.00020285,30]
[406924413,1772278246953,-250.0,0.000203,10]
[406924414,1772278246975,-168.0,0.00020314,30]
[406924415,1772278246995,-166.0,0.00020314,30]
[406924416,1772278247006,-168.0,0.00020323,2]
[406924417,1772278247017,-284.0,0.00020353,2]
[406924418,1772278247027,-164.0,0.0002039,30]
[406924419,1772278247038,-170.0,0.000204,30]
[406924420,1772278247047,-250.0,0.000204,10]
[406924421,1772278247060,-168.0,0.00020403,2]
[406924422,1772278247071,-162.0,0.00020429,30]
[406924423,1772278247080,-168.0,0.00020438,2]
[406924424,1772278247090,-193.0,0.00020448,30]
[406924425,1772278247100,-156.0,0.00020448,30]
[406924426,1772278247109,-150.0,0.00020448,30]
[406924427,1772278247119,-1367.17,0.0002045,2]
[406924428,1772278247129,-1000.0,0.00020455,2]
[406924429,1772278247140,-244.0,0.00020455,2]
[406924430,1772278247152,-187.0,0.00020458,30]
[406924431,1772278247163,-154.0,0.00020467,30]
[406924432,1772278247173,-169.0,0.00020486,30]
[406924433,1772278247182,-250.0,0.000205,10]
[406924434,1772278247192,-236.0,0.00020505,30]
[406924435,1772278247202,-210.0,0.00020525,30]
[406924436,1772278247211,-5768.562299,0.00020526,2]
[406924437,1772278247220,-1091.964106,0.00020548,2]
[406924438,1772278247229,-650.0,0.00020548,2]
[406924439,1772278247239,-161.0,0.00020563,30]
[406924440,1772278247249,-162.0,0.00020563,30]
[406924441,1772278247258,-637.0,0.00020578,2]
[406924442,1772278247267,-2183.0,0.00020578,2]
[406924443,1772278247276,-1387.0,0.00020578,2]
[406924444,1772278247286,-729.0,0.00020578,2]
[406924445,1772278247296,-431.0,0.00020578,2]
[406924446,1772278247306,-431.0,0.00020578,2]
[406924447,1772278247316,-151.0,0.000206,4]
[406924449,1772278247325,-250.0,0.000206,10]
[406924450,1772278247335,-1397.55352461,0.0002061,2]
[406924451,1772278247344,-173.0,0.00020621,30]
[406924452,1772278247354,-151.0,0.00020622,2]
[406924455,1772278247363,-151.0,0.00020622,2]
[406924456,1772278247376,-7117.379275,0.00020661,2]
[406924458,1772278247386,-7117.379275,0.00020661,2]
[406924460,1772278247409,-7117.379275,0.00020661,2]
[406924462,1772278247429,-7117.379275,0.00020661,2]
[406924463,1772278247447,-200.0,0.00020664,30]
[406924464,1772278247459,-684.0,0.00020671,2]
[406924465,1772278247469,-150.0,0.00020671,2]
[406924466,1772278247480,-150.0,0.00020671,2]
[406924467,1772278247490,-150.0,0.00020671,2]
[406924468,1772278247502,-150.0,0.00020671,2]
[406924469,1772278247513,-218.0,0.00020671,2]
[406924470,1772278247524,-430.0,0.0002068,2]
[406924471,1772278247535,-300.0,0.0002068,2]
[406924472,1772278247546,-300.0,0.0002068,2]
[406924473,1772278247557,-300.0,0.0002068,2]
[406924474,1772278247568,-300.0,0.0002068,2]
[406924475,1772278247578,-300.0,0.0002068,2]
[406924476,1772278247589,-307.0,0.0002068,2]
[406924477,1772278247598,-250.0,0.000207,10]
[406924478,1772278247610,-161.32827966,0.00020717,2]
[406924479,1772278247619,-1367.17,0.0002072,2]
[406924480,1772278247630,-192.0,0.00020765,30]
[406924481,1772278247639,-2128.05371934,0.00020767,2]
[406924482,1772278247650,-168.0,0.00020786,2]
[406924483,1772278247659,-250.0,0.000208,10]
[406924484,1772278247670,-284.0,0.0002082,2]
[406924485,1772278247680,-150.0,0.00020834,2]
[406924486,1772278247691,-258.01526345,0.000209,2]
[406924487,1772278247702,-250.0,0.000209,10]
[406924488,1772278247712,-1367.17,0.0002099,2]
[406924489,1772278247723,-279.08093824,0.00021,2]
[406924490,1772278247733,-1572.6310936,0.00021,10]
[406924491,1772278247743,-50000.0,0.00021,2]
[406924492,1772278247756,-2720.0,0.00021,2]
[406924493,1772278247765,-10000.0,0.00021,5]
[406924494,1772278247776,-501.79,0.00021,7]
[406924495,1772278247787,-3000.0,0.00021,2]
[406924496,1772278247799,-151.0,0.00021,2]
[406924497,1772278247810,-250.0,0.00021,10]
[406924498,1772278247821,-150.0,0.00021,2]
[406924499,1772278247832,-3000.0,0.0002101,2]
[406924500,1772278247843,-3000.0,0.0002102,2]
[406924501,1772278247855,-690.0,0.00021023,2]
[406924502,1772278247867,-2047.73011063,0.00021025,3]
[406924503,1772278247877,-3000.0,0.0002103,2]
[406924504,1772278247887,-3000.0,0.0002104,2]
[406924505,1772278247896,-3000.0,0.0002105,2]
[406924506,1772278247906,-206.0,0.00021056,30]
[406924507,1772278247916,-3000.0,0.0002106,2]
[406924508,1772278247926,-3000.0,0.0002107,2]
[406924509,1772278247936,-151.0,0.0002107,2]
[406924510,1772278247946,-151.0,0.0002107,2]
[406924511,1772278247956,-151.0,0.0002107,2]
[406924512,1772278247966,-151.0,0.0002107,2]
[406924513,1772278247975,-3000.0,0.0002108,2]
[406924514,1772278247985,-3000.0,0.0002109,2]
[406924515,1772278247995,-378.1585615,0.00021096,2]
[406924516,1772278248006,-3000.0,0.000211,2]
[406924517,1772278248015,-250.0,0.000211,10]
[406924518,1772278248025,-3000.0,0.0002111,2]
[406924519,1772278248034,-182.0,0.0002112,30]
[406924520,1772278248044,-3000.0,0.0002112,2]
[406924521,1772278248054,-166.62403001,0.0002112,2]
[406924522,1772278248063,-3000.0,0.0002113,2]
[406924523,1772278248073,-1544.51987164,0.0002114,2]
[406924524,1772278248086,-1455.48012836,0.0002114,2]
[406924525,1772278248095,-3000.0,0.0002115,2]
[406924526,1772278248106,-3000.0,0.0002116,2]
[406924527,1772278248116,-3000.0,0.0002117,2]
[406924528,1772278248126,-3000.0,0.0002118,2]
[406924529,1772278248135,-284.0,0.00021188,2]
[406924530,1772278248145,-3000.0,0.0002119,2]
[406924531,1772278248156,-3000.0,0.000212,2]
[406924532,1772278248166,-3000.0,0.0002121,2]
[406924533,1772278248176,-22663.06384721,0.0002122,2]
[406924534,1772278248264,-20276.03733738,0.0002122,2]
[406924535,1772278248274,-3000.0,0.0002122,2]
[406924536,1772278248284,-151.0,0.0002122,2]
[406924537,1772278248300,-1667.59970072,0.0002122,2]
[406924538,1772278248312,-5449.77957428,0.0002122,2]
[406924539,1772278248322,-4398.7862298,0.0002122,2]
[406924547,1772278809874,189.36,9.5e-05,2]
[406924583,1772279432212,-441.79045475,0.00011879,2]
[406924585,1772279432223,-587.0,0.00011879,2]
[406924588,1772279432234,-300.0,0.00011999,2]
[406924590,1772279432245,-150.0,0.00011999,2]
[406924592,1772279432255,-2302.10678588,0.00012,2]
[406924595,1772279432273,-316.45,0.00012,2]
[406924597,1772279432285,-22050.72988489,0.00012,2]
[406924833,1772279438525,-379.64897681,0.00012,2]
[406924875,1772279443410,-571.72472067,0.00012,2]
[406924876,1772279443424,-3553.35963175,0.00012,2]
[406924877,1772279443442,-3381.4538906,0.00012779,2]
[406924878,1772279443454,-2884.2811495,0.00012938,2]
[406924879,1772279443466,-355.9687622,0.00013038,2]
[406924880,1772279443478,-161.81507921,0.00013038,2]
[406924881,1772279443488,-524.82848843,0.00013038,2]
[406924882,1772279443498,-14098.8459573,0.00013039,2]
[406924883,1772279443510,-3588.09393776,0.00013039,2]
[406924889,1772279446448,-6759.17261467,0.00013039,2]
[406924890,1772279446458,-11282.51205621,0.00013039,2]
[406924891,1772279446469,-6947.11034459,0.00013039,2]
[406924892,1772279446479,-420.0,0.00013172,2]
[406924893,1772279446488,-500.0,0.00013273,2]
[406924894,1772279446499,-500.0,0.00013273,2]
[406924895,1772279446507,-500.0,0.00013273,2]
[406924896,1772279446517,-433.16040458,0.00013273,2]
[406924898,1772279447113,3027.19,0.000158,10]
[406924899,1772279593341,900.0,0.000158,120]
[406924900,1772279611127,168.9333,7.079e-05,2]
[406924904,1772280008288,182.82,9.5e-05,2]
[406924905,1772280342476,5000.0,9.501e-05,2]
[406924906,1772280366088,3328.52340102,9.501e-05,2]
[406924909,1772280447131,2472.88600522,9.501e-05,2]
[406924910,1772280517390,10000.0,9.5e-05,2]
[406924911,1772280608030,150.73,9.5e-05,2]
[406924912,1772280622040,2101.22088217,0.000158,10]
[406924942,1772280637354,-665.05,9.605e-05,2]
[406924944,1772280637365,-940.06947016,9.605e-05,2]
[406924947,1772280637376,-717.86508783,9.605e-05,2]
[406925031,1772280638542,-2677.01544201,9.605e-05,2]
[406925032,1772280638553,-555.0,9.605e-05,2]
[406925033,1772280638562,-150.0,9.703e-05,2]
[406925034,1772280638572,-182.82,9.8e-05,2]
[406925035,1772280638582,-300.0,9.999e-05,2]
[406925036,1772280638591,-300.0,9.999e-05,2]
[406925037,1772280638602,-1200.0,9.999e-05,2]
[406925038,1772280638612,-512.22163006,0.0001,2]
[406925039,1772280638622,-1893.19763302,0.0001,2]
[406925040,1772280638631,-182.82,0.000101,2]
[406925041,1772280638641,-182.82,0.000105,2]
[406925042,1772280638650,-403.0,0.00010999,2]
[406925043,1772280638659,-177.0,0.00011703,2]
[406925044,1772280638669,-208.870103,0.00011899,2]
[406925045,1772280638678,-574.845856,0.00012113,2]
[406925046,1772280638687,-574.845856,0.00012623,2]
[406925047,1772280638697,-279.80056018,0.00012941,2]
[406925048,1772280638706,-574.845856,0.00013133,2]
[406925049,1772280638715,-500.0,0.00013273,2]
[406925050,1772280638724,-500.0,0.00013273,2]
[406925051,1772280638733,-500.0,0.00013273,2]
[406925052,1772280638742,-500.0,0.00013273,2]
[406925053,1772280638751,-500.0,0.00013273,2]
[406925054,1772280638760,-500.0,0.00013273,2]
[406925055,1772280638769,-500.0,0.00013273,2]
[406925056,1772280638778,-500.0,0.00013273,2]
[406925057,1772280638787,-500.0,0.00013273,2]
[406925058,1772280638796,-500.0,0.00013273,2]
[406925059,1772280638805,-500.0,0.00013273,2]
[406925060,1772280638814,-2956.60353164,0.00013599,2]
[406925061,1772280638823,-574.845856,0.00013643,2]
[406925062,1772280638832,-300.0,0.00013673,2]
[406925063,1772280638842,-500.0,0.00013699,2]
[406925064,1772280638851,-500.3389437,0.00013699,2]
[406925065,1772280638861,-500.0,0.00013699,2]
[406925066,1772280638870,-500.0,0.00013699,2]
[406925067,1772280638879,-500.0,0.00013699,2]
[406925068,1772280638888,-500.0,0.00013699,2]
[406925069,1772280638897,-449.40800837,0.00013699,2]
[406925070,1772280638907,-500.50202877,0.00013699,2]
[406925071,1772280638916,-500.0,0.00013699,2]
[406925072,1772280638926,-150.33751463,0.00013699,2]
[406925073,1772280638935,-500.0,0.00013699,2]
[406925074,1772280638944,-500.0,0.00013699,2]
[406925075,1772280638954,-500.0,0.00013699,2]
[406925076,1772280638973,-500.0,0.00013699,2]
[406925077,1772280638991,-500.0,0.00013699,2]
[406925078,1772280639000,-500.0,0.00013699,2]
[406925079,1772280639009,-500.0,0.00013699,2]
[406925080,1772280639019,-500.0,0.00013699,2]
[406925081,1772280639028,-500.66744206,0.00013699,2]
[406925082,1772280639038,-500.0,0.00013699,2]
[406925083,1772280639047,-358.26389884,0.00013699,2]
[406925084,1772280639057,-500.0,0.00013699,2]
[406925085,1772280639066,-305.13642404,0.00013699,2]
[406925086,1772280639075,-500.0,0.00013699,2]
[406925087,1772280639085,-512.01103336,0.00013699,2]
[406925088,1772280639094,-225.96081165,0.00013699,2]
[406925089,1772280639103,-500.0,0.00013699,2]
[406925090,1772280639112,-500.0,0.00013699,2]
[406925091,1772280639121,-500.0,0.00013699,2]
[406925092,1772280639131,-500.0,0.00013699,2]
[406925093,1772280639145,-500.0,0.00013699,2]
[406925094,1772280639154,-512.30108839,0.00013699,2]
[406925095,1772280639163,-500.0,0.00013699,2]
[406925096,1772280639172,-500.81211976,0.00013699,2]
[406925097,1772280639181,-500.0,0.00013699,2]
[406925098,1772280639191,-500.0,0.00013699,2]
[406925099,1772280639200,-525.56220294,0.00013699,2]
[406925100,1772280639209,-150.0,0.000137,2]
[406925101,1772280639220,-204.0,0.00013703,2]
[406925102,1772280639229,-500.0,0.00013821,2]
[406925103,1772280639239,-1000.0,0.00013821,2]
[406925104,1772280639248,-1012.02268609,0.00013821,2]
[406925105,1772280639257,-1000.0,0.00013821,2]
[406925106,1772280639267,-1000.0,0.00013821,2]
[406925107,1772280639276,-1000.0,0.00013821,2]
[406925108,1772280639286,-566.98229574,0.00013821,2]
[406925109,1772280639298,-433.01770426,0.00013821,2]
[406925110,1772280639307,-1000.0,0.00013821,2]
[406925111,1772280639316,-600.0,0.00013972,2]
[406925112,1772280639326,-879.73578885,0.00014006,2]
[406925113,1772280639337,-303.62,0.00014052,2]
[406925114,1772280639346,-574.845856,0.00014152,2]
[406925115,1772280639356,-150.0,0.000142,2]
[406925116,1772280639365,-600.0,0.00014221,2]
[406925117,1772280639374,-154.77606012,0.00014247,2]
[406925118,1772280639384,-507.4928761,0.00014247,2]
[406925119,1772280639393,-1000.0,0.00014247,2]
[406925120,1772280639402,-1000.0,0.00014247,2]
[406925121,1772280639411,-166.87081174,0.00014247,2]
[406925122,1772280639421,-563.53875145,0.00014247,2]
[406925123,1772280639430,-321.03257893,0.00014247,2]
[406925124,1772280639439,-1000.0,0.00014247,2]
[406925125,1772280639448,-1000.0,0.00014247,2]
[406925126,1772280639457,-1000.0,0.00014247,2]
[406925127,1772280639467,-530.89313027,0.00014247,2]
[406925128,1772280639476,-1000.0,0.00014247,2]
[406925129,1772280639485,-1000.0,0.00014247,2]
[406925130,1772280639495,-1000.0,0.00014247,2]
[406925131,1772280639507,-1000.0,0.00014247,2]
[406925132,1772280639518,-1000.0,0.00014247,2]
[406925133,1772280639527,-825.6354297,0.00014247,2]
[406925134,1772280639536,-1000.0,0.00014247,2]
[406925135,1772280639546,-1000.0,0.00014247,2]
[406925136,1772280639555,-1500.0,0.00014368,2]
[406925137,1772280639564,-1500.0,0.00014368,2]
[406925138,1772280639573,-1500.0,0.00014368,2]
[406925139,1772280639583,-1500.0,0.00014368,2]
[406925140,1772280639747,-1500.0,0.00014368,2]
[406925141,1772280639757,-1500.0,0.00014368,2]
[406925142,1772280639767,-574.845856,0.00014662,2]
[406925143,1772280639776,-600.0,0.00014768,2]
[406925144,1772280639786,-21.70952565,0.00014795,2]
[406925443,1772280643600,-978.29047435,0.00014795,2]
[406925445,1772280643610,-1000.0,0.00014795,2]
[406925447,1772280643620,-635.13434781,0.00014795,2]
[406925449,1772280643629,-1095.74058019,0.00014795,2]
[406925451,1772280643639,-219.81754629,0.00014795,2]
[406925752,1772280646591,-780.18245371,0.00014795,2]
[406925754,1772280646600,-1000.0,0.00014795,2]
[406925756,1772280646610,-1000.0,0.00014795,2]
[406925758,1772280646619,-1000.0,0.00014795,2]
[406925760,1772280646628,-1000.0,0.00014795,2]
[406925762,1772280646638,-1000.0,0.00014795,2]
[406925764,1772280646647,-1000.0,0.00014795,2]
[406925766,1772280646656,-1000.0,0.00014795,2]
[406925768,1772280646666,-150.0,0.000148,2]
[406925770,1772280646675,-406.34016257,0.000148,2]
[406925772,1772280646685,-744.89972287,0.00014801,2]
[406925774,1772280646694,-642.12,0.0001491,2]
[406925776,1772280646703,-2196.347,0.0001491,2]
[406925778,1772280646712,-1391.771,0.0001491,2]
[406925780,1772280646722,-267.55442511,0.00014916,2]
[406925782,1772280646732,-500.0,0.00014916,2]
[406925784,1772280646742,-1000.0,0.00014916,2]
[406925786,1772280646751,-963.15738854,0.00014916,2]
[406925788,1772280646761,-1000.0,0.00014916,2]
[406925790,1772280646770,-817.40084034,0.00014916,2]
[406925792,1772280646779,-1000.0,0.00015,2]
[406925794,1772280646789,-600.0,0.00015089,2]
[406925796,1772280646798,-229.01,0.000153,2]
[406925798,1772280646808,-164.97595852,0.00015305,2]
[406925800,1772280646817,-153.735,0.0001533,2]
[406925802,1772280646827,-151.208,0.0001533,2]
[406925804,1772280646836,-2956.60353161,0.00015634,2]
[406925806,1772280646845,-231.0,0.00015703,2]
[406925808,1772280646854,-2002.75597035,0.000158,7]
[406925810,1772280646863,-1000.0,0.00016,2]
[406925812,1772280646873,-720.0,0.00016598,2]
[406925814,1772280646882,-161.32827968,0.00016694,2]
[406925816,1772280646891,-187.78006525,0.00016894,2]
[406925818,1772280646900,-194.72792766,0.00016894,2]
[406925820,1772280646910,-201.93286099,0.00016894,2]
[406925823,1772280646920,-209.40437684,0.00016894,2]
[406925825,1772280646929,-217.15233878,0.00016894,2]
[406925827,1772280646939,-225.18697532,0.00016894,2]
[406925829,1772280646948,-233.51889341,0.00016894,2]
[406925831,1772280646957,-242.15909246,0.00016894,2]
[406925833,1772280646967,-251.11897888,0.00016894,2]
[406925835,1772280646976,-260.4103811,0.00016894,2]
[406925837,1772280646985,-270.0455652,0.00016894,2]
[406925839,1772280646994,-280.03725112,0.00016894,2]
[406925841,1772280647003,-290.39862941,0.00016894,2]
[406925842,1772280647012,-301.1433787,0.00016894,2]
[406925844,1772280647022,-1000.0,0.00016903,5]
[406925846,1772280647038,-171.7084023,0.00017071,2]
[406925848,1772280647048,-12476.41863354,0.00017522,2]
[406925850,1772280647059,-2956.60353161,0.00017669,2]
[406925852,1772280647068,-258.0,0.00017703,2]
[406925854,1772280647077,-637.0,0.0001791,2]
[406925856,1772280647087,-2183.0,0.0001791,2]
[406925858,1772280647096,-1387.0,0.0001791,2]
[406925860,1772280647105,-183.121551,0.00017986,7]
[406925862,1772280647115,-958.84098939,0.00018,2]
[406925865,1772280647126,-6124.837395,0.00018,2]
[406925867,1772280647138,-5947.66454736,0.00018,2]
[406925871,1772280647173,-2475.18,0.00018,2]
[406926156,1772280712718,153.0,4.3e-07,2]
[406926157,1772280713759,153.0,4.3e-07,2]
[406926158,1772280714786,153.0,4.3e-07,2]
[406926159,1772280715807,153.0,4.3e-07,2]
[406926160,1772280716858,153.0,4.3e-07,2]
[406926161,1772280719219,153.0,4.3e-07,2]
[406926162,1772280893585,1689.88,0.000158,30]
[406926163,1772281208411,731.74,9.5e-05,2]
[406926164,1772281209114,731.74,9.5e-05,2]
[406926165,1772281209830,731.74,9.5e-05,2]
[406926166,1772281251393,5000.0,9.501e-05,2]
[406926167,1772281275027,218.23898577,9.501e-05,2]
[406926173,1772281824238,-300.0,9.598e-05,2]
[406926174,1772281824266,-300.0,9.598e-05,2]
[406926175,1772281824295,-272.85636263,9.598e-05,2]
[406926221,1772281831790,-27.14363737,9.598e-05,2]
[406926223,1772281831799,-300.0,9.598e-05,2]
[406926225,1772281831809,-554.0,9.598e-05,2]
[406926228,1772281831819,-150.0,9.599e-05,2]
[406926230,1772281831829,-1200.0,9.599e-05,2]
[406926232,1772281831838,-731.74,9.6e-05,2]